fUST/lending_fUST_20250811
["ID","MTS","AMOUNT","RATE_DAILY","PERIOD"]
[378578942,1754915523779,-167.36677087,0.00019241,2]
[378578943,1754915526958,-132.63322913,0.00019241,2]
[378578944,1754915526984,-117.61555156,0.00019242,2]
[378578945,1754915528098,462.41767457,0.00018999,2]
[378578946,1754915532047,-253.51732092,0.00019242,2]
[378578947,1754915535177,190.23761772,0.00018999,2]
[378578948,1754915535302,-275.98493414,0.00019242,2]
[378578949,1754915537270,-395.6458207,0.00019162,2]
[378578950,1754915537293,-58.69375092,0.00019242,2]
[378578951,1754915538647,166.13540308,0.00018999,2]
[378578952,1754915538680,390.37823351,0.00018999,2]
[378578953,1754915539639,-195.57572022,0.00019242,2]
[378578954,1754915540905,-234.80587415,0.00019232,3]
[378578955,1754915543604,-426.21252627,0.00019232,3]
[378578956,1754915546228,-356.48374684,0.00019232,3]
[378578957,1754915549965,-107.05785274,0.00019232,3]
[378578958,1754915549989,-169.21293722,0.00019242,2]
[378578959,1754915552034,-196.55540662,0.00019232,3]
[378578960,1754915553605,-300.0,0.00019232,3]
[378578961,1754915555021,-65.72459338,0.00019232,3]
[378578962,1754915555045,-384.04264649,0.00019241,2]
[378578963,1754915555068,-71.8731316,0.00019241,2]
[378578964,1754915556554,-184.06127989,0.00019241,2]
[378578965,1754915558684,-226.23676167,0.00019241,2]
[378578966,1754915560674,-215.7222968,0.00019241,2]
[378578967,1754915562289,-281.14,0.00019232,3]
[378578968,1754915562313,-28.33628448,0.00019241,2]
[378578969,1754915564906,-258.38826247,0.00019241,2]
[378578970,1754915564930,-163.84667079,0.00019241,2]
[378578971,1754915566403,-293.82830066,0.00019241,2]
[378578972,1754915571386,-233.58272122,0.00019241,2]
[378578973,1754915574574,-271.04595308,0.00019232,3]
[378578974,1754915576073,-210.35256253,0.00019141,2]
[378578975,1754915576095,-1.13606416,0.00019232,3]
[378578976,1754915578824,-300.0,0.00019232,3]
[378578977,1754915580136,-190.05439835,0.00019232,3]
[378578978,1754915582662,-247.80507103,0.00019162,2]
[378578979,1754915583141,9609.62176649,0.00018308,2]
[378578980,1754915583165,390.37823351,0.00018308,2]
[378578981,1754915584767,-9.68275959,0.00019162,2]
[378578982,1754915584789,-81.18358441,0.00019232,3]
[378578983,1754915584816,-182.12694605,0.0001924,2]
[378578984,1754915593663,-117.87305395,0.0001924,2]
[378578985,1754915593686,-293.36032424,0.00019241,2]
[378578986,1754915593708,-0.81114536,0.00019241,2]
[378578987,1754915598783,-163.81959449,0.00019241,2]
[378578988,1754915601201,-160.19547137,0.00019178,2]
[378578989,1754915603268,568.481786,0.00013699,2]
[378578990,1754915604577,-319.00616755,0.00019178,2]
[378578991,1754915605983,-249.25520214,0.00019178,2]
[378578993,1754915609768,-210.58906433,0.00019178,2]
[378578994,1754915611656,-236.0,0.00019178,2]
[378578995,1754915615330,-159.16039052,0.00019178,2]
[378578996,1754915617447,-180.81874606,0.00019178,2]
[378578997,1754915620044,-169.98956831,0.00019178,2]
[378578998,1754915651808,5000.0,0.0001905,2]
[378578999,1754915652581,-169.98956831,0.00019078,2]
[378579000,1754915653902,-163.1285328,0.0001911,2]
[378579001,1754915660056,252.21515649,0.0001905,2]
[378579002,1754915669258,3788.924824,0.0001905,2]
[378579003,1754915669280,1211.075176,0.0001905,2]
[378579004,1754915679873,175.48314076,0.00019041,2]
[378579005,1754915684993,5000.0,0.0001905,2]
[378579006,1754915701127,3613.44168324,0.0001905,2]
[378579007,1754915701150,1386.55831676,0.0001905,2]
[378579008,1754915707925,-172.1845301,0.00019141,2]
[378579009,1754915707949,-5.00864084,0.00019141,2]
[378579011,1754915710939,-152.0,0.00019141,2]
[378579012,1754915712395,-253.04556921,0.00019141,2]
[378579013,1754915713092,1447.0665182,0.00018241,2]
[378579014,1754915716763,5000.0,0.0001905,2]
[378579016,1754915733379,2166.37516504,0.0001905,2]
[378579017,1754915733404,2833.62483496,0.0001905,2]
[378579018,1754915749523,5000.0,0.0001905,2]
[378579019,1754915765106,2166.37516504,0.0001905,2]
[378579020,1754915765133,2833.62483496,0.0001905,2]
[378579022,1754915780767,5000.0,0.0001905,2]
[378579023,1754915796317,2166.37516504,0.0001905,2]
[378579024,1754915796342,2833.62483496,0.0001905,2]
[378579025,1754915812494,5000.0,0.0001905,2]
[378579026,1754915813038,2166.37516504,0.00018224,2]
[378579027,1754915813061,10000.0,0.00018224,2]
[378579028,1754915813084,10000.0,0.00018224,2]
[378579029,1754915813105,10000.0,0.00018224,2]
[378579030,1754915813126,10000.0,0.00018224,2]
[378579031,1754915813148,7690.12992916,0.00018224,2]
[378579032,1754915814495,150.0,0.000189,2]
[378579033,1754915823178,176.85060378,0.00019041,2]
[378579034,1754915823701,1176.06073,0.00018224,2]
[378579036,1754915824294,-215.28387796,0.00019062,2]
[378579037,1754915825808,-285.40050124,0.00019062,2]
[378579038,1754915827270,-303.60919135,0.00019062,2]
[378579039,1754915829176,-287.68367419,0.00019062,2]
[378579040,1754915830105,806.95873706,0.0001905,2]
[378579041,1754915830128,4193.04126294,0.0001905,2]
[378579042,1754915838752,1240.31834476,0.0001905,2]
[378579043,1754915847241,4566.6403923,0.0001905,2]
[378579044,1754915847265,433.3596077,0.0001905,2]
[378579045,1754915863238,5000.0,0.0001905,2]
[378579046,1754915879919,4566.6403923,0.0001905,2]
[378579047,1754915879947,433.3596077,0.0001905,2]
[378579048,1754915887881,-162.23221591,0.00019078,2]
[378579049,1754915891059,-171.54027768,0.00019078,2]
[378579050,1754915895378,5000.0,0.0001905,2]
[378579051,1754915895954,-372.13361386,0.00019078,2]
[378579052,1754915897558,-263.59378805,0.00019078,2]
[378579053,1754915897855,302.84859387,0.00018983,2]
[378579054,1754915900204,-334.60769642,0.00019078,2]
[378579056,1754915902392,-199.64772184,0.00019078,2]
[378579057,1754915904367,1132.56731424,0.0001905,2]
[378579058,1754915904437,-305.52074233,0.00019078,2]
[378579059,1754915906065,-190.72394391,0.00019078,2]
[378579060,1754915906090,-20.01869887,0.00019078,2]
[378579061,1754915907749,-345.09775006,0.00019078,2]
[378579062,1754915909367,-176.94732526,0.00019078,2]
[378579063,1754915911887,-246.49216065,0.00019078,2]
[378579064,1754915913166,3131.22448419,0.0001905,2]
[378579065,1754915913193,1868.77551581,0.0001905,2]
[378579066,1754915913933,-325.26701996,0.00019078,2]
[378579067,1754915916601,-290.80684081,0.00019078,2]
[378579068,1754915918675,-324.04248255,0.00019078,2]
[378579069,1754915921236,-228.89331178,0.00019078,2]
[378579070,1754915922068,1237.95618227,0.0001905,2]
[378579071,1754915922840,-42.43441006,0.00019078,2]
[378579072,1754915922863,-108.67289057,0.00019078,2]
[378579073,1754915924872,-153.3577111,0.00019078,2]
[378579075,1754915930767,2883.77624969,0.0001905,2]
[378579078,1754915976507,1719.96682748,0.00018977,2]
[378579079,1754916006367,1051.56907489,0.00018506,2]
[378579080,1754916006743,360.914999,0.00018587,2]
[378579081,1754916016760,200.2359023,0.00018204,2]
[378579082,1754916033628,202.33595677,0.00018917,2]
[378579083,1754916036547,474.46929179,0.00018148,2]
[378579084,1754916036573,526.00643281,0.00018148,2]
[378579085,1754916115889,1433.52310656,0.000189,2]
[378579087,1754916141326,1004.7,0.00023,30]
[378579088,1754916148400,2826.73019249,0.00018978,2]
[378579090,1754916167617,-1200.0,0.00019076,2]
[378579091,1754916167641,-236.0,0.00019076,2]
[378579092,1754916167667,-300.0,0.00019077,2]
[378579093,1754916167692,-165.0,0.00019077,2]
[378579094,1754916167721,-300.0,0.00019077,2]
[378579095,1754916167745,-1200.0,0.00019077,2]
[378579096,1754916167770,-300.0,0.00019077,2]
[378579097,1754916167797,-500.0,0.00019077,2]
[378579098,1754916167823,-399.0,0.00019077,2]
[378579100,1754916184887,1002.9121019,0.00018169,2]
[378579101,1754916211877,800.0,0.00018961,2]
[378579105,1754916299896,166.078837,0.00018126,2]
[378579106,1754916300186,166.078837,0.00018162,2]
[378579107,1754916300459,166.078837,0.00018198,2]
[378579108,1754916300666,166.078837,0.00018235,2]
[378579109,1754916300897,166.078837,0.00018271,2]
[378579110,1754916301132,166.078837,0.00018307,2]
[378579115,1754916352644,-181.0190527,0.00019075,2]
[378579116,1754916364740,2414.35514424,0.00018978,2]
[378579117,1754916364763,351.14253119,0.00018978,2]
[378579118,1754916376982,-118.9809473,0.00019075,2]
[378579119,1754916377007,-161.69742208,0.00019075,2]
[378579120,1754916387700,9648.85746881,0.00018262,2]
[378579121,1754916387723,2576.75569659,0.00018262,2]
[378579122,1754916417629,1900.10679878,0.000189,2]
[378579123,1754916453393,172.18453009,0.00018975,2]
[378579124,1754916480305,710.18562109,0.00018975,2]
[378579128,1754916542682,4640.76735345,0.00018117,2]
[378579129,1754916542704,5359.23264655,0.00018117,2]
[378579130,1754916585559,2419.81046601,0.00018978,2]
[378579131,1754916593911,657.515696,0.00013699,2]
[378579133,1754916603532,1563.44119144,0.00018079,2]
[378579134,1754916603555,10000.0,0.00018079,2]
[378579135,1754916603578,10000.0,0.00018079,2]
[378579136,1754916603603,3336.55880856,0.00018079,2]
[378579137,1754916606627,302.84859387,0.000189,2]
[378579189,1754916632770,-461.69742208,0.00019051,2]
[378579191,1754916632779,-300.0,0.00019074,2]
[378579193,1754916632789,-300.0,0.00019074,2]
[378579195,1754916632798,-175.0,0.00019074,2]
[378579197,1754916632808,-286.17257792,0.00019074,2]
[378579435,1754916638374,-913.82742208,0.00019074,2]
[378579438,1754916638384,-500.0,0.00019075,2]
[378579440,1754916638394,-500.0,0.00019075,2]
[378579442,1754916638404,-500.0,0.00019075,2]
[378579444,1754916638413,-609.61420582,0.00019075,2]
[378579446,1754916638423,-189.81018368,0.00019075,2]
[378579448,1754916638435,-7.84820036,0.00019075,2]
[378579450,1754916638446,-500.0,0.00019075,2]
[378579452,1754916638458,-500.0,0.00019075,2]
[378579454,1754916638467,-547.07076008,0.00019075,2]
[378579456,1754916638476,-500.0,0.00019075,2]
[378579458,1754916638486,-500.0,0.00019075,2]
[378579460,1754916638496,-340.61068722,0.00019075,2]
[378579462,1754916638505,-299.05479591,0.00019075,2]
[378579465,1754916638517,-200.94520409,0.00019075,2]
[378579467,1754916638527,-500.0,0.00019075,2]
[378579469,1754916638536,-500.0,0.00019075,2]
[378579471,1754916638545,-500.0,0.00019075,2]
[378579473,1754916638555,-500.0,0.00019075,2]
[378579475,1754916638565,-500.0,0.00019075,2]
[378579477,1754916638575,-500.0,0.00019075,2]
[378579479,1754916638584,-500.0,0.00019075,2]
[378579481,1754916638595,-1200.0,0.00019075,2]
[378579483,1754916638604,-50000.0,0.00019076,2]
[378579485,1754916638614,-1737.96939833,0.00019078,2]
[378579487,1754916638625,-2000.0,0.00019078,2]
[378579489,1754916638634,-2000.0,0.00019078,2]
[378579491,1754916638643,-2000.0,0.00019078,2]
[378579493,1754916638653,-2000.0,0.00019078,2]
[378579495,1754916638662,-2000.0,0.00019078,2]
[378579497,1754916638671,-2000.0,0.00019078,2]
[378579499,1754916638681,-2000.0,0.00019078,2]
[378579501,1754916638690,-2000.0,0.00019078,2]
[378579503,1754916638700,-2000.0,0.00019078,2]
[378579505,1754916638709,-2000.0,0.00019078,2]
[378579507,1754916638719,-2000.0,0.00019078,2]
[378579509,1754916638729,-2000.0,0.00019078,2]
[378579511,1754916638738,-2000.0,0.00019078,2]
[378579513,1754916638747,-585.856,0.00019078,2]
[378579515,1754916638757,-2000.0,0.00019078,2]
[378579517,1754916638766,-2000.0,0.00019078,2]
[378579519,1754916638776,-2000.0,0.00019078,2]
[378579521,1754916638786,-2000.0,0.00019078,2]
[378579523,1754916638795,-2000.0,0.00019078,2]
[378579526,1754916638805,-502.33564512,0.00019087,2]
[378579528,1754916638815,-302.84859387,0.00019089,2]
[378579530,1754916638824,-560.07157526,0.00019141,2]
[378579532,1754916638834,-8359.6624647,0.00019162,2]
[378579534,1754916638843,-1041.03,0.00019168,3]
[378579536,1754916638853,-520.51,0.00019168,3]
[378579538,1754916638863,-260.26,0.00019168,3]
[378579540,1754916638873,-780.8,0.00019168,3]
[378579542,1754916638883,-500.0,0.00019177,2]
[378579544,1754916638892,-126.70094015,0.00019178,2]
[378579546,1754916638904,-458.95038637,0.00019178,2]
[378579548,1754916638914,-460.0,0.00019178,2]
[378579550,1754916638923,-460.0,0.00019178,2]
[378579552,1754916638933,-553.98,0.00019178,2]
[378579554,1754916638943,-460.0,0.00019178,2]
[378579556,1754916638954,-560.72,0.00019178,2]
[378579558,1754916638964,-460.0,0.00019178,2]
[378579561,1754916638975,-460.0,0.00019178,2]
[378579563,1754916638985,-1054.77,0.00019178,2]
[378579564,1754916638995,-846.48,0.00019178,2]
[378579565,1754916639004,-460.0,0.00019178,2]
[378579566,1754916639014,-460.0,0.00019178,2]
[378579567,1754916639024,-460.0,0.00019178,2]
[378579568,1754916639035,-460.0,0.00019178,2]
[378579569,1754916639045,-556.44,0.00019178,2]
[378579570,1754916639055,-460.0,0.00019178,2]
[378579571,1754916639065,-460.0,0.00019178,2]
[378579572,1754916639076,-771.25,0.00019178,2]
[378579573,1754916639087,-460.0,0.00019178,2]
[378579574,1754916639097,-460.0,0.00019178,2]
[378579575,1754916639107,-460.0,0.00019178,2]
[378579576,1754916639117,-477.4056974,0.00019178,2]
[378579577,1754916639131,-460.0,0.00019178,2]
[378579578,1754916639141,-206.90154381,0.00019178,2]
[378579579,1754916639151,-523.04,0.00019178,2]
[378579580,1754916639161,-72.40023412,0.00019178,2]
[378579581,1754916639174,-390.4550112,0.00019178,2]
[378579582,1754916639183,-460.0,0.00019178,2]
[378579583,1754916639193,-297.56489088,0.00019178,2]
[378579584,1754916639219,-162.43510912,0.00019178,2]
[378579585,1754916639229,-460.0,0.00019178,2]
[378579586,1754916639238,-460.0,0.00019178,2]
[378579587,1754916639247,-460.0,0.00019178,2]
[378579588,1754916639257,-801.47,0.00019178,2]
[378579589,1754916639269,-488.57301708,0.00019178,2]
[378579590,1754916639279,-197.67358942,0.00019178,2]
[378579591,1754916639291,-121.82054712,0.00019178,2]
[378579592,1754916639301,-460.0,0.00019178,2]
[378579593,1754916639311,-460.0,0.00019178,2]
[378579594,1754916639320,-151.0,0.00019178,2]
[378579595,1754916639330,-460.0,0.00019178,2]
[378579596,1754916639341,-151.0,0.00019178,2]
[378579597,1754916639351,-460.0,0.00019178,2]
[378579598,1754916639361,-500.0,0.00019178,2]
[378579599,1754916639372,-465.47586545,0.00019178,2]
[378579600,1754916639382,-151.0,0.00019178,2]
[378579601,1754916639392,-500.0,0.00019178,2]
[378579602,1754916639401,-500.0,0.00019178,2]
[378579603,1754916639410,-151.0,0.00019178,2]
[378579604,1754916639419,-151.0,0.00019178,2]
[378579605,1754916639429,-460.0,0.00019178,2]
[378579606,1754916639438,-460.0,0.00019178,2]
[378579607,1754916639452,-460.0,0.00019178,2]
[378579608,1754916639465,-151.0,0.00019178,2]
[378579609,1754916639476,-277.88573075,0.00019178,2]
[378579610,1754916639485,-460.0,0.00019178,2]
[378579611,1754916639496,-460.0,0.00019178,2]
[378579612,1754916639506,-152.0364052,0.00019178,2]
[378579613,1754916639516,-151.0,0.00019178,2]
[378579614,1754916639527,-460.0,0.00019178,2]
[378579615,1754916639536,-460.0,0.00019178,2]
[378579616,1754916639546,-460.0,0.00019178,2]
[378579617,1754916639555,-1422.81,0.00019178,2]
[378579618,1754916639565,-589.68,0.00019178,2]
[378579619,1754916639574,-460.0,0.00019178,2]
[378579620,1754916639583,-460.0,0.00019178,2]
[378579621,1754916639593,-460.0,0.00019178,2]
[378579622,1754916639602,-460.0,0.00019178,2]
[378579623,1754916639612,-460.0,0.00019178,2]
[378579624,1754916639623,-460.0,0.00019178,2]
[378579625,1754916639632,-460.0,0.00019178,2]
[378579626,1754916639641,-460.0,0.00019178,2]
[378579627,1754916639650,-1346.16,0.00019178,2]
[378579628,1754916639659,-460.0,0.00019178,2]
[378579629,1754916639669,-460.0,0.00019178,2]
[378579630,1754916639679,-835.25,0.00019178,2]
[378579631,1754916639688,-460.0,0.00019178,2]
[378579632,1754916639698,-460.0,0.00019178,2]
[378579633,1754916639707,-1251.45,0.00019178,2]
[378579634,1754916639717,-460.0,0.00019178,2]
[378579635,1754916639727,-460.0,0.00019178,2]
[378579636,1754916639736,-460.0,0.00019178,2]
[378579637,1754916639745,-1109.63,0.00019178,2]
[378579638,1754916639755,-460.0,0.00019178,2]
[378579639,1754916639764,-1777.51,0.00019178,2]
[378579640,1754916639774,-460.0,0.00019178,2]
[378579641,1754916639783,-465.8770543,0.00019178,2]
[378579642,1754916639794,-849.23,0.00019178,2]
[378579644,1754916639803,-460.0,0.00019178,2]
[378579645,1754916639813,-460.0,0.00019178,2]
[378579647,1754916639822,-1123.26,0.00019178,2]
[378579649,1754916639832,-460.0,0.00019178,2]
[378579651,1754916639842,-460.0,0.00019178,2]
[378579653,1754916639851,-460.0,0.00019178,2]
[378579655,1754916639861,-554.33,0.00019178,2]
[378579657,1754916639872,-460.0,0.00019178,2]
[378579660,1754916639882,-460.0,0.00019178,2]
[378579664,1754916639892,-460.0,0.00019178,2]
[378579668,1754916639902,-460.0,0.00019178,2]
[378579675,1754916639922,-460.0,0.00019178,2]
[378579677,1754916639934,-460.0,0.00019178,2]
[378579678,1754916639944,-460.0,0.00019178,2]
[378579679,1754916639954,-460.0,0.00019178,2]
[378579680,1754916639965,-501.22,0.00019178,2]
[378579681,1754916639975,-709.58,0.00019178,2]
[378579682,1754916639985,-460.0,0.00019178,2]
[378579683,1754916639995,-460.0,0.00019178,2]
[378579684,1754916640005,-460.0,0.00019178,2]
[378579685,1754916640014,-460.0,0.00019178,2]
[378579686,1754916640024,-151.0,0.00019178,2]
[378579687,1754916640034,-498.0349588,0.00019178,2]
[378579688,1754916640044,-460.0,0.00019178,2]
[378579689,1754916640054,-151.0,0.00019178,2]
[378579690,1754916640064,-460.0,0.00019178,2]
[378579691,1754916640074,-387.79022982,0.00019178,2]
[378579692,1754916640084,-460.0,0.00019178,2]
[378579693,1754916640094,-3168.8,0.00019178,2]
[378579694,1754916640104,-460.0,0.00019178,2]
[378579695,1754916640113,-460.0,0.00019178,2]
[378579696,1754916640124,-277.11847251,0.00019178,2]
[378579697,1754916640134,-155.84673891,0.00019178,2]
[378579698,1754916640144,-471.45,0.00019178,2]
[378579699,1754916640154,-460.0,0.00019178,2]
[378579700,1754916640164,-1169.83,0.00019178,2]
[378579701,1754916640175,-1087.88,0.00019178,2]
[378579702,1754916640185,-460.0,0.00019178,2]
[378579703,1754916640195,-460.0,0.00019178,2]
[378579704,1754916640205,-709.99,0.00019178,2]
[378579705,1754916640216,-500.0,0.00019178,2]
[378579706,1754916640225,-460.0,0.00019178,2]
[378579707,1754916640235,-460.0,0.00019178,2]
[378579708,1754916640245,-952.21,0.00019178,2]
[378579709,1754916640255,-793.36,0.00019178,2]
[378579710,1754916640266,-460.0,0.00019178,2]
[378579711,1754916640275,-704.33,0.00019178,2]
[378579712,1754916640286,-584.88,0.00019178,2]
[378579713,1754916640296,-460.0,0.00019178,2]
[378579714,1754916640306,-1256.98,0.00019178,2]
[378579715,1754916640316,-460.0,0.00019178,2]
[378579716,1754916640326,-460.0,0.00019178,2]
[378579717,1754916640335,-460.0,0.00019178,2]
[378579718,1754916640347,-464.11293408,0.00019178,2]
[378579719,1754916640357,-460.0,0.00019178,2]
[378579720,1754916640367,-460.0,0.00019178,2]
[378579721,1754916640379,-460.0,0.00019178,2]
[378579722,1754916640388,-2123.22,0.00019178,2]
[378579723,1754916640398,-699.41,0.00019178,2]
[378579724,1754916640408,-463.07612979,0.00019178,2]
[378579725,1754916640418,-460.0,0.00019178,2]
[378579726,1754916640428,-460.0,0.00019178,2]
[378579727,1754916640438,-460.0,0.00019178,2]
[378579728,1754916640449,-460.0,0.00019178,2]
[378579729,1754916640459,-460.0,0.00019178,2]
[378579730,1754916640469,-561.01,0.00019178,2]
[378579731,1754916640478,-151.0,0.00019178,2]
[378579732,1754916640488,-151.0,0.00019178,2]
[378579733,1754916640498,-790.68,0.00019178,2]
[378579734,1754916640508,-500.0,0.00019178,2]
[378579735,1754916640518,-460.0,0.00019178,2]
[378579736,1754916640527,-500.0,0.00019178,2]
[378579737,1754916640538,-460.0,0.00019178,2]
[378579738,1754916640548,-460.0,0.00019178,2]
[378579739,1754916640558,-914.88,0.00019178,2]
[378579740,1754916640568,-1237.86,0.00019178,2]
[378579741,1754916640577,-460.0,0.00019178,2]
[378579742,1754916640586,-460.0,0.00019178,2]
[378579744,1754916640595,-460.0,0.00019178,2]
[378579745,1754916640604,-460.0,0.00019178,2]
[378579746,1754916640613,-460.0,0.00019178,2]
[378579747,1754916640623,-460.0,0.00019178,2]
[378579748,1754916640632,-1083.43,0.00019178,2]
[378579749,1754916640642,-460.0,0.00019178,2]
[378579750,1754916640651,-460.0,0.00019178,2]
[378579751,1754916640661,-460.0,0.00019178,2]
[378579752,1754916640670,-462.03153307,0.00019178,2]
[378579753,1754916640680,-460.0,0.00019178,2]
[378579754,1754916640689,-460.69784821,0.00019178,2]
[378579755,1754916640699,-460.0,0.00019178,2]
[378579756,1754916640708,-488.53,0.00019178,2]
[378579757,1754916640718,-460.0,0.00019178,2]
[378579758,1754916640727,-2157.37461772,0.00019178,2]
[378579759,1754916640737,-666.0,0.00019178,2]
[378579760,1754916640746,-560.07157523,0.00019215,2]
[378579761,1754916640756,-151.0,0.00019231,2]
[378579762,1754916640765,-151.0,0.00019231,2]
[378579763,1754916640775,-151.0,0.00019231,2]
[378579764,1754916640784,-151.0,0.00019231,2]
[378579765,1754916640793,-1000.0,0.00019231,2]
[378579766,1754916640803,-151.0,0.00019231,2]
[378579767,1754916640813,-151.0,0.00019231,2]
[378579768,1754916640822,-151.0,0.00019231,2]
[378579769,1754916640832,-18502.69577858,0.00019231,2]
[378579770,1754916640842,-151.0,0.00019231,2]
[378579771,1754916640852,-151.0,0.00019231,2]
[378579772,1754916640862,-151.0,0.00019231,2]
[378579773,1754916640874,-1000.0,0.00019231,2]
[378579774,1754916640887,-151.0,0.00019231,2]
[378579775,1754916640899,-151.0,0.00019231,2]
[378579776,1754916640909,-151.0,0.00019231,2]
[378579777,1754916640919,-1000.0,0.00019231,2]
[378579778,1754916640929,-152.62670612,0.00019231,2]
[378579779,1754916640939,-151.0,0.00019231,2]
[378579780,1754916640948,-151.0,0.00019231,2]
[378579781,1754916640958,-1000.0,0.00019231,2]
[378579782,1754916640968,-151.0,0.00019231,2]
[378579783,1754916640978,-1000.0,0.00019231,2]
[378579784,1754916640987,-151.0,0.00019231,2]
[378579785,1754916640997,-151.0,0.00019231,2]
[378579786,1754916641007,-1000.0,0.00019231,2]
[378579787,1754916641016,-151.0,0.00019231,2]
[378579788,1754916641024,-151.0,0.00019231,2]
[378579789,1754916641034,-1000.0,0.00019231,2]
[378579790,1754916641042,-151.0,0.00019231,2]
[378579791,1754916641051,-151.0,0.00019231,2]
[378579792,1754916641062,-151.0,0.00019231,2]
[378579793,1754916641073,-1000.0,0.00019231,2]
[378579794,1754916641083,-151.0,0.00019231,2]
[378579795,1754916641094,-220.04994635,0.00019231,2]
[378579796,1754916641104,-151.0,0.00019231,2]
[378579797,1754916641114,-1000.0,0.00019231,2]
[378579798,1754916641126,-151.0,0.00019231,2]
[378579799,1754916641136,-151.0,0.00019231,2]
[378579800,1754916641147,-1000.0,0.00019231,2]
[378579801,1754916641157,-151.0,0.00019231,2]
[378579802,1754916641166,-1000.0,0.00019231,2]
[378579803,1754916641176,-151.0,0.00019231,2]
[378579804,1754916641186,-1000.0,0.00019231,2]
[378579805,1754916641196,-1000.0,0.00019231,2]
[378579806,1754916641206,-1000.0,0.00019231,2]
[378579807,1754916641216,-1000.0,0.00019231,2]
[378579808,1754916641226,-828.11599111,0.00019231,2]
[378579809,1754916641235,-151.0,0.00019231,2]
[378579810,1754916641245,-151.0,0.00019231,2]
[378579811,1754916641255,-151.0,0.00019231,2]
[378579812,1754916641265,-151.0,0.00019231,2]
[378579813,1754916641275,-250.0,0.00019231,2]
[378579814,1754916641285,-151.0,0.00019231,2]
[378579815,1754916641294,-250.0,0.00019231,2]
[378579816,1754916641304,-151.0,0.00019231,2]
[378579817,1754916641314,-250.0,0.00019231,2]
[378579818,1754916641324,-151.0,0.00019231,2]
[378579819,1754916641334,-151.0,0.00019231,2]
[378579820,1754916641344,-250.0,0.00019231,2]
[378579821,1754916641354,-250.0,0.00019231,2]
[378579822,1754916641364,-151.0,0.00019231,2]
[378579823,1754916641375,-151.0,0.00019231,2]
[378579824,1754916641385,-250.0,0.00019231,2]
[378579825,1754916641395,-460.0,0.00019241,2]
[378579826,1754916641405,-500.0,0.00019241,2]
[378579827,1754916641415,-151.0,0.00019241,2]
[378579828,1754916641426,-4620.25,0.00019241,2]
[378579829,1754916641436,-460.0,0.00019241,2]
[378579830,1754916641446,-460.0,0.00019241,2]
[378579831,1754916641459,-1339.77,0.00019241,2]
[378579832,1754916641469,-1030.07,0.00019241,2]
[378579833,1754916641479,-689.31,0.00019241,2]
[378579834,1754916641490,-4816.69,0.00019241,2]
[378579835,1754916641501,-1935.27,0.00019241,2]
[378579836,1754916641512,-460.0,0.00019241,2]
[378579837,1754916641522,-1061.88,0.00019241,2]
[378579838,1754916641534,-3640.4,0.00019241,2]
[378579839,1754916641545,-766.01,0.00019241,2]
[378579841,1754916641555,-935.09,0.00019241,2]
[378579843,1754916641566,-460.0,0.00019241,2]
[378579845,1754916641576,-2736.69,0.00019241,2]
[378579847,1754916641586,-819.98727706,0.00019241,2]
[378579849,1754916641597,-984.61801691,0.00019241,2]
[378579851,1754916641606,-984.61801691,0.00019241,2]